[Event "Nordstansblixten 2025"]
[Site "Nordstan, Göteborg, Sweden"]
[Date "2025.05.10"]
[Round "7.5"]
[White "Hammar, Arvid"]
[Black "Andersson, Stig"]
[Result "0-1"]
[TimeControl "3 minutes + 2 seconds per move from move one"]
[WhiteFideId "1735977"]
[BlackFideId "1731971"]
[WhiteElo "1667"]
[BlackElo "1837"]

1. c4 {[%clk 00:03:03]} Nf6 {[%clk 00:03:02]} {[%emt 00:00:03]} 2. g3 {[%clk
00:03:03]} {[%emt 00:00:02]} g6 {[%clk 00:03:01]} {[%emt 00:00:02]} 3. Bg2
{[%clk 00:03:04]} Bg7 {[%clk 00:03:01]} {[%emt 00:00:02]} 4. Nc3 {[%clk
00:03:05]} {[%emt 00:00:01]} O-O {[%clk 00:02:59]} {[%emt 00:00:04]} 5. e3
{[%clk 00:03:04]} {[%emt 00:00:03]} c5 {[%clk 00:02:59]} {[%emt 00:00:02]} 6.
Nge2 {[%clk 00:02:59]} {[%emt 00:00:07]} Nc6 {[%clk 00:02:58]} {[%emt
00:00:03]} 7. O-O {[%clk 00:02:59]} {[%emt 00:00:02]} d6 {[%clk 00:02:57]}
{[%emt 00:00:03]} 8. d4 {[%clk 00:02:54]} {[%emt 00:00:07]} Bg4 {[%clk
00:02:49]} {[%emt 00:00:09]} 9. d5 {[%clk 00:02:43]} {[%emt 00:00:13]} Nb8
{[%clk 00:02:41]} {[%emt 00:00:10]} 10. Re1 {[%clk 00:02:27]} {[%emt 00:00:19]}
a6 {[%clk 00:02:41]} {[%emt 00:00:02]} 11. f3 {[%clk 00:02:24]} {[%emt
00:00:05]} Bd7 {[%clk 00:02:40]} {[%emt 00:00:03]} 12. e4 {[%clk 00:02:20]}
{[%emt 00:00:06]} Qc8 {[%clk 00:02:34]} {[%emt 00:00:07]} 13. Nf4 {[%clk
00:02:14]} {[%emt 00:00:08]} b5 {[%clk 00:02:27]} {[%emt 00:00:09]} 14. b3
{[%clk 00:02:11]} {[%emt 00:00:05]} b4 {[%clk 00:02:25]} {[%emt 00:00:04]} 15.
Nce2 {[%clk 00:02:05]} {[%emt 00:00:08]} a5 {[%clk 00:02:24]} {[%emt 00:00:03]}
16. Bb2 {[%clk 00:02:04]} {[%emt 00:00:03]} a4 {[%clk 00:02:20]} {[%emt
00:00:07]} 17. Bxf6 {[%clk 00:01:52]} {[%emt 00:00:14]} Bxf6 {[%clk 00:02:19]}
{[%emt 00:00:03]} 18. Rb1 {[%clk 00:01:52]} {[%emt 00:00:02]} axb3 {[%clk
00:02:16]} {[%emt 00:00:05]} 19. axb3 {[%clk 00:01:50]} {[%emt 00:00:05]} Rd8
{[%clk 00:01:54]} {[%emt 00:00:23]} 20. Qd2 {[%clk 00:01:46]} {[%emt 00:00:06]}
Na6 {[%clk 00:01:50]} {[%emt 00:00:06]} 21. Kf2 {[%clk 00:01:33]} {[%emt
00:00:15]} Nc7 {[%clk 00:01:50]} {[%emt 00:00:02]} 22. h4 {[%clk 00:01:30]}
{[%emt 00:00:05]} h5 {[%clk 00:01:44]} {[%emt 00:00:08]} 23. Rg1 {[%clk
00:01:10]} {[%emt 00:00:22]} Bg7 {[%clk 00:01:43]} {[%emt 00:00:02]} 24. Nd3
{[%clk 00:01:03]} {[%emt 00:00:08]} Ne8 {[%clk 00:01:35]} {[%emt 00:00:11]} 25.
f4 {[%clk 00:00:58]} {[%emt 00:00:08]} Bh3 {[%clk 00:01:26]} {[%emt 00:00:10]}
26. Ke1 {[%clk 00:00:48]} {[%emt 00:00:13]} Bxg2 {[%clk 00:01:23]} {[%emt
00:00:05]} 27. Rxg2 {[%clk 00:00:49]} {[%emt 00:00:01]} Qh3 {[%clk 00:01:17]}
{[%emt 00:00:07]} 28. Rf2 {[%clk 00:00:45]} {[%emt 00:00:06]} Ra3 {[%clk
00:01:15]} {[%emt 00:00:04]} 29. Nec1 {[%clk 00:00:38]} {[%emt 00:00:09]} Qxg3
{[%clk 00:01:14]} {[%emt 00:00:03]} 30. Ne2 {[%clk 00:00:36]} {[%emt 00:00:04]}
Qxh4 {[%clk 00:01:11]} {[%emt 00:00:05]} 31. Qe3 {[%clk 00:00:32]} {[%emt
00:00:06]} Rda8 {[%clk 00:01:09]} {[%emt 00:00:04]} 32. e5 {[%clk 00:00:31]}
{[%emt 00:00:03]} Bh6 {[%clk 00:01:04]} {[%emt 00:00:06]} 33. exd6 {[%clk
00:00:27]} {[%emt 00:00:06]} exd6 {[%clk 00:00:59]} {[%emt 00:00:07]} 34. Qe7
{[%clk 00:00:21]} {[%emt 00:00:08]} Ra2 {[%clk 00:00:51]} {[%emt 00:00:10]} 35.
Qxh4 {[%clk 00:00:20]} {[%emt 00:00:02]} Bg7 {[%clk 00:00:47]} {[%emt
00:00:07]} 36. Rb2 {[%clk 00:00:19]} {[%emt 00:00:03]} Ra1+ {[%clk 00:00:47]}
{[%emt 00:00:02]} 37. Kd2 {[%clk 00:00:20]} Nf6 {[%clk 00:00:43]} {[%emt
00:00:06]} 38. Qh3 {[%clk 00:00:17]} {[%emt 00:00:05]} Ne4+ {[%clk 00:00:43]}
{[%emt 00:00:01]} 39. Ke3 {[%clk 00:00:16]} {[%emt 00:00:03]} Nxf2 {[%clk
00:00:42]} {[%emt 00:00:04]} 40. Nxf2 {[%clk 00:00:16]} {[%emt 00:00:01]} Re1
{[%clk 00:00:36]} {[%emt 00:00:08]} 41. Nd3 {[%clk 00:00:16]} {[%emt 00:00:02]}
Re8+ {[%clk 00:00:36]} {[%emt 00:00:02]} 42. Kf3 {[%clk 00:00:17]} {[%emt
00:00:01]} Rd1 {[%clk 00:00:33]} {[%emt 00:00:05]} 43. Qd7 {[%clk 00:00:16]}
{[%emt 00:00:03]} Rxd3+ {[%clk 00:00:30]} {[%emt 00:00:06]} 44. Kf2 {[%clk
00:00:15]} {[%emt 00:00:03]} Rde3 {[%clk 00:00:30]} {[%emt 00:00:02]} 45. Ra2
{[%clk 00:00:14]} {[%emt 00:00:03]} Bd4 {[%clk 00:00:29]} {[%emt 00:00:03]} 46.
Nxd4 {[%clk 00:00:14]} {[%emt 00:00:02]} cxd4 {[%clk 00:00:30]} {[%emt
00:00:02]} 47. Ra7 {[%clk 00:00:15]} {[%emt 00:00:01]} Rf8 {[%clk 00:00:28]}
{[%emt 00:00:04]} 48. Qxd6 {[%clk 00:00:14]} {[%emt 00:00:03]} Rxb3 {[%clk
00:00:27]} {[%emt 00:00:03]} 49. Ra6 {[%clk 00:00:15]} {[%emt 00:00:01]} d3
{[%clk 00:00:25]} {[%emt 00:00:05]} 50. Qe5 {[%clk 00:00:13]} {[%emt 00:00:03]}
Rc3 {[%clk 00:00:24]} {[%emt 00:00:04]} 51. d6 {[%clk 00:00:13]} {[%emt
00:00:02]} d2 {[%clk 00:00:24]} {[%emt 00:00:02]} 52. Ra1 {[%clk 00:00:13]}
{[%emt 00:00:01]} Rc1 {[%clk 00:00:23]} {[%emt 00:00:02]} 53. Qd5 {[%clk
00:00:13]} {[%emt 00:00:03]} Rxa1 {[%clk 00:00:23]} {[%emt 00:00:03]} 54. Qxd2
{[%clk 00:00:12]} {[%emt 00:00:02]} b3 {[%clk 00:00:22]} {[%emt 00:00:03]} 55.
d7 {[%clk 00:00:13]} {[%emt 00:00:01]} Ra2 {[%clk 00:00:22]} {[%emt 00:00:02]}
56. d8=Q {[%clk 00:00:06]} {[%emt 00:00:09]} Rxd8 {[%clk 00:00:23]} {[%emt
00:00:01]} 57. Ke3 {[%clk 00:00:05]} {[%emt 00:00:03]} Raxd2 {[%clk 00:00:23]}
{[%emt 00:00:02]} 58. c5 {[%clk 00:00:06]} {[%emt 00:00:01]} R2d3+ {[%clk
00:00:23]} {[%emt 00:00:02]} 59. Ke4 {[%clk 00:00:07]} b2 {[%clk 00:00:23]}
{[%emt 00:00:02]} 60. c6 {[%clk 00:00:08]} Rc3 {[%clk 00:00:23]} {[%emt
00:00:02]} 61. c7 {[%clk 00:00:08]} {[%emt 00:00:02]} Rxc7 {[%clk 00:00:23]}
{[%emt 00:00:02]} 62. Ke5 {[%clk 00:00:08]} {[%emt 00:00:02]} b1=Q {[%clk
00:00:21]} {[%emt 00:00:04]} 63. Kf6 {[%clk 00:00:04]} {[%emt 00:00:07]} Qf5#
{[%clk 00:00:20]} {[%emt 00:00:01]} 0-1

[Event "Nordstansblixten 2025"]
[Site "Nordstan, Göteborg, Sweden"]
[Date "2025.05.10"]
[Round "7.7"]
[White "Bergdahl, Martin"]
[Black "Kenani, Dariush"]
[Result "0-1"]
[TimeControl "3 minutes + 2 seconds per move from move one"]
[WhiteFideId "1782231"]
[BlackFideId "1707973"]
[WhiteElo "1867"]
[BlackElo "1933"]

1. e4 {[%clk 00:03:01]} {[%emt 00:00:02]} c5 {[%clk 00:03:02]} {[%emt
00:00:03]} 2. Nf3 {[%clk 00:03:02]} Nc6 {[%clk 00:03:03]} 3. c3 {[%clk
00:03:03]} Nf6 {[%clk 00:02:59]} {[%emt 00:00:05]} 4. e5 {[%clk 00:03:04]}
{[%emt 00:00:02]} Nd5 {[%clk 00:03:00]} 5. Bc4 {[%clk 00:03:05]} Nb6 {[%clk
00:02:57]} {[%emt 00:00:06]} 6. Bb3 {[%clk 00:03:06]} e6 {[%clk 00:02:51]}
{[%emt 00:00:08]} 7. O-O {[%clk 00:03:04]} {[%emt 00:00:03]} d5 {[%clk
00:02:49]} {[%emt 00:00:05]} 8. exd6 {[%clk 00:03:03]} {[%emt 00:00:03]} Bxd6
{[%clk 00:02:50]} {[%emt 00:00:01]} 9. Re1 {[%clk 00:02:12]} {[%emt 00:00:53]}
O-O {[%clk 00:02:48]} {[%emt 00:00:03]} 10. Bc2 {[%clk 00:02:09]} {[%emt
00:00:05]} Qc7 {[%clk 00:02:34]} {[%emt 00:00:17]} 11. Bxh7+ {[%clk 00:01:22]}
{[%emt 00:00:49]} Kxh7 {[%clk 00:02:35]} {[%emt 00:00:01]} 12. Ng5+ {[%clk
00:01:23]} Kg6 {[%clk 00:02:29]} {[%emt 00:00:08]} 13. Qg4 {[%clk 00:00:55]}
{[%emt 00:00:29]} f5 {[%clk 00:02:26]} {[%emt 00:00:05]} 14. Qh4 {[%clk
00:00:24]} {[%emt 00:00:33]} Bxh2+ {[%clk 00:01:55]} {[%emt 00:00:33]} 15. Kh1
{[%clk 00:00:12]} {[%emt 00:00:15]} Bf4 {[%clk 00:01:44]} {[%emt 00:00:12]} 16.
Nxe6 {[%clk 00:00:07]} {[%emt 00:00:07]} Bxe6 {[%clk 00:01:19]} {[%emt
00:00:27]} 17. Rxe6+ {[%clk 00:00:09]} Rf6 {[%clk 00:01:19]} {[%emt 00:00:02]}
18. Rxf6+ {[%clk 00:00:07]} {[%emt 00:00:04]} gxf6 {[%emt 00:00:03]} 19. Na3
{[%emt 00:00:04]} Qh7 {[%clk 00:01:17]} {[%emt 00:00:02]} 20. Qxh7+ {[%clk
00:00:06]} Kxh7 {[%clk 00:01:18]} {[%emt 00:00:01]} 21. Nc2 {[%clk 00:00:07]}
{[%emt 00:00:01]} Ne5 {[%clk 00:01:15]} {[%emt 00:00:05]} 22. g3 {[%clk
00:00:07]} {[%emt 00:00:03]} Bh6 {[%clk 00:01:15]} {[%emt 00:00:02]} 23. f4
{[%clk 00:00:04]} {[%emt 00:00:04]} Nd3 {[%clk 00:01:16]} {[%emt 00:00:01]} 24.
Ne3 {[%clk 00:00:04]} {[%emt 00:00:03]} Kg6 {[%clk 00:01:12]} {[%emt 00:00:05]}
25. Ng2 {[%clk 00:00:03]} {[%emt 00:00:02]} Rh8 {[%clk 00:01:13]} {[%emt
00:00:03]} 26. Nh4+ {[%clk 00:00:05]} Kf7 {[%clk 00:01:11]} {[%emt 00:00:04]}
27. Nxf5 {[%clk 00:00:05]} {[%emt 00:00:02]} Nxc1 {[%clk 00:01:07]} {[%emt
00:00:05]} 28. Rxc1 {[%clk 00:00:06]} {[%emt 00:00:02]} Bxf4+ {[%clk 00:01:07]}
{[%emt 00:00:01]} 29. Kg2 {[%clk 00:00:07]} Bc7 {[%clk 00:01:06]} {[%emt
00:00:04]} 30. Re1 {[%clk 00:00:08]} {[%emt 00:00:02]} Re8 {[%clk 00:01:01]}
{[%emt 00:00:06]} 31. Rh1 {[%clk 00:00:05]} {[%emt 00:00:05]} Be5 {[%clk
00:00:52]} {[%emt 00:00:11]} 32. Nh6+ {[%clk 00:00:05]} {[%emt 00:00:03]} Kg6
{[%clk 00:00:52]} {[%emt 00:00:02]} 33. Ng4 {[%clk 00:00:06]} Nd5 {[%clk
00:00:48]} {[%emt 00:00:07]} 34. d4 {[%clk 00:00:05]} {[%emt 00:00:03]} cxd4
{[%clk 00:00:48]} {[%emt 00:00:02]} 35. cxd4 {[%clk 00:00:06]} Bxd4 {[%clk
00:00:49]} {[%emt 00:00:02]} 36. Rd1 {[%clk 00:00:07]} Re4 {[%clk 00:00:44]}
{[%emt 00:00:07]} 37. Nf2 {[%clk 00:00:05]} {[%emt 00:00:04]} Bxf2 {[%clk
00:00:42]} {[%emt 00:00:04]} 38. Rxd5 {[%clk 00:00:06]} Bb6 {[%clk 00:00:41]}
{[%emt 00:00:03]} 39. Rd7 {[%clk 00:00:07]} {[%emt 00:00:02]} Re2+ {[%clk
00:00:42]} {[%emt 00:00:01]} 40. Kf3 {[%clk 00:00:07]} {[%emt 00:00:02]} Rxb2
{[%clk 00:00:43]} {[%emt 00:00:01]} 41. Rxb7 {[%clk 00:00:08]} Rxa2 {[%clk
00:00:44]} 0-1

[Event "Nordstansblixten 2025"]
[Site "Nordstan, Göteborg, Sweden"]
[Date "2025.05.10"]
[Round "7.8"]
[White "Cigoja, Vuk"]
[Black "Mohammed, Safian Haj"]
[Result "1-0"]
[TimeControl "3 minutes + 2 seconds per move from move one"]
[WhiteFideId "14411628"]
[BlackFideId "1729276"]
[WhiteElo "1719"]
[BlackElo "1874"]

1. e4 {[%clk 00:03:03]} c5 {[%clk 00:03:03]} {[%emt 00:00:02]} 2. Nf3 {[%clk
00:03:04]} d6 {[%clk 00:03:02]} {[%emt 00:00:03]} 3. d4 {[%clk 00:03:06]} cxd4
{[%clk 00:03:03]} {[%emt 00:00:01]} 4. Nxd4 {[%clk 00:03:07]} Nf6 {[%clk
00:03:04]} 5. Nc3 {[%clk 00:03:08]} g6 {[%clk 00:03:04]} {[%emt 00:00:02]} 6.
Bc4 {[%clk 00:03:05]} {[%emt 00:00:04]} Bg7 {[%clk 00:03:06]} 7. h3 {[%clk
00:03:00]} {[%emt 00:00:07]} O-O {[%clk 00:03:05]} {[%emt 00:00:02]} 8. O-O
{[%clk 00:03:01]} {[%emt 00:00:01]} Nc6 {[%clk 00:03:06]} {[%emt 00:00:01]} 9.
Nde2 {[%clk 00:02:56]} {[%emt 00:00:07]} Bd7 {[%clk 00:03:01]} {[%emt
00:00:07]} 10. Bb3 {[%clk 00:02:56]} {[%emt 00:00:02]} Rc8 {[%clk 00:03:00]}
{[%emt 00:00:03]} 11. Be3 {[%clk 00:02:54]} {[%emt 00:00:04]} Ne5 {[%clk
00:02:55]} {[%emt 00:00:07]} 12. f4 {[%clk 00:02:33]} {[%emt 00:00:23]} Nc4
{[%clk 00:02:56]} 13. Bf2 {[%clk 00:02:29]} {[%emt 00:00:06]} a6 {[%clk
00:02:44]} {[%emt 00:00:14]} 14. a4 {[%clk 00:02:14]} {[%emt 00:00:17]} Nxb2
{[%clk 00:02:39]} {[%emt 00:00:08]} 15. Qd2 {[%clk 00:02:02]} {[%emt 00:00:13]}
Nc4 {[%clk 00:02:39]} {[%emt 00:00:02]} 16. Qd3 {[%clk 00:02:01]} {[%emt
00:00:03]} b5 {[%clk 00:02:33]} {[%emt 00:00:08]} 17. Rab1 {[%clk 00:01:49]}
{[%emt 00:00:14]} Ne8 {[%clk 00:02:09]} {[%emt 00:00:26]} 18. Nd5 {[%clk
00:01:42]} {[%emt 00:00:10]} Nc7 {[%clk 00:01:56]} {[%emt 00:00:14]} 19. Bxc4
{[%clk 00:01:20]} {[%emt 00:00:23]} bxc4 {[%clk 00:01:57]} {[%emt 00:00:01]} 20.
Qxc4 {[%clk 00:01:21]} {[%emt 00:00:02]} Nxd5 {[%clk 00:01:57]} {[%emt
00:00:01]} 21. Qxd5 {[%clk 00:01:19]} {[%emt 00:00:04]} Rxc2 {[%clk 00:01:50]}
{[%emt 00:00:09]} 22. Qd3 {[%clk 00:01:19]} {[%emt 00:00:02]} Rc8 {[%clk
00:01:45]} {[%emt 00:00:07]} 23. Bd4 {[%clk 00:01:18]} {[%emt 00:00:03]} Bxa4
{[%clk 00:01:39]} {[%emt 00:00:08]} 24. Bxg7 {[%clk 00:01:14]} {[%emt
00:00:06]} Kxg7 {[%clk 00:01:39]} {[%emt 00:00:02]} 25. Qd4+ {[%clk 00:01:16]}
e5 {[%emt 00:00:07]} 26. Qxa4 {[%clk 00:01:15]} exf4 {[%clk 00:01:32]} {[%emt
00:00:05]} 27. Nxf4 {[%clk 00:01:15]} {[%emt 00:00:01]} Qg5 {[%clk 00:01:29]}
{[%emt 00:00:05]} 28. Qd4+ {[%clk 00:01:16]} {[%emt 00:00:02]} Kg8 {[%clk
00:01:29]} {[%emt 00:00:01]} 29. Rb7 {[%clk 00:01:08]} {[%emt 00:00:11]} Rc2
{[%clk 00:01:28]} {[%emt 00:00:03]} 30. Qd3 {[%clk 00:00:50]} {[%emt 00:00:19]}
Rfc8 {[%clk 00:01:28]} {[%emt 00:00:03]} 31. Rb3 {[%clk 00:00:36]} {[%emt
00:00:17]} a5 {[%clk 00:01:20]} {[%emt 00:00:10]} 32. Qxd6 {[%clk 00:00:36]}
{[%emt 00:00:01]} a4 {[%clk 00:01:15]} {[%emt 00:00:07]} 33. Rbf3 {[%clk
00:00:36]} {[%emt 00:00:02]} h5 {[%clk 00:00:51]} {[%emt 00:00:26]} 34. R3f2
{[%clk 00:00:35]} {[%emt 00:00:03]} R2c6 {[%clk 00:00:50]} {[%emt 00:00:04]} 35.
Qd5 {[%clk 00:00:34]} {[%emt 00:00:03]} Qg3 {[%clk 00:00:48]} {[%emt 00:00:04]}
36. Ne2 {[%clk 00:00:23]} {[%emt 00:00:12]} Qe3 {[%clk 00:00:45]} {[%emt
00:00:04]} 37. Qxf7+ {[%clk 00:00:22]} {[%emt 00:00:04]} Kh8 {[%clk 00:00:47]}
38. Qf3 {[%clk 00:00:16]} {[%emt 00:00:08]} Qg5 {[%clk 00:00:46]} {[%emt
00:00:03]} 39. Nf4 {[%clk 00:00:15]} {[%emt 00:00:03]} Rc3 {[%clk 00:00:46]}
{[%emt 00:00:02]} 40. Qd1 {[%clk 00:00:14]} {[%emt 00:00:03]} Rg3 {[%clk
00:00:45]} {[%emt 00:00:03]} 41. Qd4+ {[%clk 00:00:14]} {[%emt 00:00:02]} Kh7
{[%clk 00:00:45]} {[%emt 00:00:02]} 42. Qd7+ {[%clk 00:00:15]} {[%emt
00:00:01]} Kh6 {[%clk 00:00:46]} 43. Qxc8 {[%clk 00:00:15]} {[%emt 00:00:02]}
1-0

[Event "Nordstansblixten 2025"]
[Site "Nordstan, Göteborg, Sweden"]
[Date "2025.05.10"]
[Round "7.9"]
[White "Gustavsson, Ville"]
[Black "Molokov, Andrey"]
[Result "1-0"]
[TimeControl "3 minutes + 2 seconds per move from move one"]
[WhiteFideId "1792822"]
[BlackFideId "1780450"]
[WhiteElo "1798"]
[BlackElo "1592"]

1. e4 {[%clk 00:03:00]} {[%emt 00:00:01]} c5 {[%clk 00:03:04]} 2. c3 {[%clk
00:03:01]} Nc6 {[%clk 00:03:04]} 3. d4 {[%clk 00:03:02]} cxd4 {[%clk 00:03:06]}
4. cxd4 {[%clk 00:03:04]} g6 {[%clk 00:03:07]} 5. Nf3 {[%clk 00:02:57]} {[%emt
00:00:09]} Bg7 {[%clk 00:03:07]} {[%emt 00:00:01]} 6. Nc3 {[%clk 00:02:46]}
{[%emt 00:00:13]} e6 {[%clk 00:03:06]} {[%emt 00:00:04]} 7. Bd3 {[%clk
00:02:39]} {[%emt 00:00:08]} Nge7 {[%clk 00:03:06]} {[%emt 00:00:02]} 8. O-O
{[%clk 00:02:39]} {[%emt 00:00:03]} Nxd4 {[%clk 00:03:03]} {[%emt 00:00:04]} 9.
Be3 {[%clk 00:02:30]} {[%emt 00:00:12]} Ndc6 {[%clk 00:02:57]} {[%emt
00:00:07]} 10. Rc1 {[%clk 00:02:23]} {[%emt 00:00:09]} O-O {[%clk 00:02:54]}
{[%emt 00:00:05]} 11. Qd2 {[%clk 00:02:24]} {[%emt 00:00:01]} d5 {[%clk
00:02:55]} {[%emt 00:00:02]} 12. Bh6 {[%clk 00:02:16]} {[%emt 00:00:09]} dxe4
{[%clk 00:02:50]} {[%emt 00:00:07]} 13. Bxg7 {[%clk 00:01:57]} {[%emt
00:00:21]} Kxg7 {[%clk 00:02:50]} {[%emt 00:00:03]} 14. Nxe4 {[%clk 00:01:51]}
{[%emt 00:00:07]} b6 {[%clk 00:02:29]} {[%emt 00:00:23]} 15. Rfd1 {[%clk
00:01:33]} {[%emt 00:00:20]} Bb7 {[%clk 00:02:26]} {[%emt 00:00:05]} 16. Qf4
{[%clk 00:01:28]} {[%emt 00:00:06]} Nd5 {[%clk 00:02:11]} {[%emt 00:00:18]} 17.
Qg3 {[%clk 00:01:02]} {[%emt 00:00:28]} Nce7 {[%clk 00:01:42]} {[%emt
00:00:31]} 18. Bc4 {[%clk 00:00:43]} {[%emt 00:00:21]} Nf5 {[%clk 00:01:42]}
{[%emt 00:00:02]} 19. Qe5+ {[%clk 00:00:40]} {[%emt 00:00:04]} f6 {[%clk
00:01:02]} {[%emt 00:00:43]} 20. Qxe6 {[%clk 00:00:37]} {[%emt 00:00:05]} Re8
{[%clk 00:00:53]} {[%emt 00:00:11]} 21. Rxd5 {[%clk 00:00:28]} {[%emt
00:00:11]} Bxd5 {[%clk 00:00:48]} {[%emt 00:00:07]} 22. Qxd5 {[%clk 00:00:28]}
{[%emt 00:00:02]} Qxd5 {[%clk 00:00:46]} {[%emt 00:00:04]} 23. Bxd5 {[%clk
00:00:28]} {[%emt 00:00:01]} Rad8 {[%clk 00:00:48]} 24. Bc6 {[%clk 00:00:17]}
{[%emt 00:00:13]} Re6 {[%clk 00:00:43]} {[%emt 00:00:07]} 25. Ng3 {[%clk
00:00:11]} {[%emt 00:00:07]} Nd4 {[%emt 00:00:04]} 26. Nxd4 {[%clk 00:00:08]}
{[%emt 00:00:04]} Rxd4 {[%clk 00:00:43]} {[%emt 00:00:02]} 27. Bf3 {[%clk
00:00:09]} {[%emt 00:00:02]} Rd8 {[%clk 00:00:37]} {[%emt 00:00:07]} 28. h3
{[%clk 00:00:08]} {[%emt 00:00:04]} Rde8 {[%clk 00:00:36]} {[%emt 00:00:03]} 29.
Rc7+ {[%clk 00:00:08]} {[%emt 00:00:02]} R8e7 {[%clk 00:00:34]} {[%emt
00:00:04]} 30. Rc1 {[%clk 00:00:09]} {[%emt 00:00:01]} Re1+ {[%clk 00:00:35]}
{[%emt 00:00:02]} 31. Rxe1 {[%clk 00:00:09]} {[%emt 00:00:02]} Rxe1+ {[%clk
00:00:36]} 32. Kh2 {[%clk 00:00:10]} {[%emt 00:00:01]} Rb1 {[%clk 00:00:35]}
{[%emt 00:00:02]} 33. b3 {[%clk 00:00:09]} {[%emt 00:00:04]} Rb2 {[%clk
00:00:36]} 34. Bd5 {[%clk 00:00:09]} {[%emt 00:00:03]} Rxa2 {[%clk 00:00:36]}
{[%emt 00:00:02]} 35. Ne4 {[%clk 00:00:10]} {[%emt 00:00:01]} Ra5 {[%clk
00:00:34]} {[%emt 00:00:03]} 36. Bc4 {[%clk 00:00:11]} {[%emt 00:00:02]} f5
{[%clk 00:00:33]} {[%emt 00:00:03]} 37. Nd6 {[%clk 00:00:12]} Rc5 {[%clk
00:00:26]} {[%emt 00:00:06]} 38. Nb5 {[%clk 00:00:12]} {[%emt 00:00:05]} a6
{[%clk 00:00:26]} {[%emt 00:00:03]} 39. Nd4 {[%clk 00:00:09]} {[%emt 00:00:05]}
b5 {[%clk 00:00:26]} 40. Ne6+ {[%clk 00:00:11]} Kf6 {[%clk 00:00:23]} {[%emt
00:00:05]} 41. Nxc5 {[%clk 00:00:11]} bxc4 {[%clk 00:00:25]} 42. bxc4 {[%clk
00:00:12]} {[%emt 00:00:01]} a5 {[%clk 00:00:26]} 43. Na4 {[%clk 00:00:12]}
{[%emt 00:00:01]} Ke5 {[%clk 00:00:28]} {[%emt 00:00:02]} 44. Kg3 {[%clk
00:00:13]} Kd4 45. c5 {[%emt 00:00:04]} Kd5 {[%clk 00:00:23]} {[%emt 00:00:03]}
46. Kf4 {[%clk 00:00:14]} {[%emt 00:00:01]} Kc6 {[%clk 00:00:24]} 47. Kg5
{[%clk 00:00:15]} {[%emt 00:00:01]} Kb5 {[%clk 00:00:25]} 48. Nb6 {[%clk
00:00:14]} {[%emt 00:00:02]} Kxc5 {[%clk 00:00:24]} {[%emt 00:00:02]} 49. Na4+
{[%clk 00:00:15]} {[%emt 00:00:01]} Kb5 {[%clk 00:00:25]} {[%emt 00:00:02]} 50.
Nb2 {[%clk 00:00:16]} Kb4 {[%clk 00:00:26]} 51. Kh6 {[%clk 00:00:18]} Kb3
{[%clk 00:00:28]} 52. Nd3 {[%clk 00:00:18]} {[%emt 00:00:02]} a4 {[%clk
00:00:28]} 53. Nc5+ {[%clk 00:00:19]} Kb4 {[%clk 00:00:28]} {[%emt 00:00:02]}
54. Nxa4 {[%clk 00:00:21]} Kxa4 {[%clk 00:00:29]} {[%emt 00:00:01]} 55. Kxh7
{[%clk 00:00:23]} Kb4 {[%clk 00:00:29]} {[%emt 00:00:02]} 56. Kxg6 {[%clk
00:00:23]} {[%emt 00:00:02]} Kc5 {[%clk 00:00:31]} 57. Kxf5 {[%clk 00:00:24]}
{[%emt 00:00:01]} Kd6 {[%clk 00:00:33]} 58. Kf6 {[%clk 00:00:25]} Kd5 {[%clk
00:00:34]} {[%emt 00:00:01]} 59. g4 {[%clk 00:00:27]} Ke4 {[%clk 00:00:35]} 60.
g5 {[%clk 00:00:29]} Kf3 {[%clk 00:00:36]} 61. h4 {[%clk 00:00:30]} Kg4 {[%clk
00:00:37]} 62. g6 {[%clk 00:00:31]} Kh5 {[%clk 00:00:39]} 63. g7 {[%clk
00:00:33]} Kxh4 {[%clk 00:00:39]} {[%emt 00:00:02]} 64. g8=Q {[%emt 00:00:03]}
Kh3 {[%clk 00:00:38]} {[%emt 00:00:02]} 1-0